fUSD/lending_fUSD_20260203
["ID","MTS","AMOUNT","RATE_DAILY","PERIOD"]
[404371350,1770082248309,-568.06,0.00013698,2]
[404371351,1770082248320,-568.06,0.00013698,2]
[404371352,1770082248331,-568.06,0.00013698,2]
[404371353,1770082248343,-568.06,0.00013698,2]
[404371354,1770082248354,-568.06,0.00013698,2]
[404371355,1770082248365,-568.06,0.00013698,2]
[404371356,1770082248376,-568.06,0.00013698,2]
[404371357,1770082248387,-568.06,0.00013698,2]
[404371358,1770082248398,-568.06,0.00013698,2]
[404371359,1770082248409,-568.06,0.00013698,2]
[404371360,1770082248421,-568.06,0.00013698,2]
[404371361,1770082248431,-568.06,0.00013698,2]
[404371362,1770082248442,-568.06,0.00013698,2]
[404371363,1770082248453,-568.06,0.00013698,2]
[404371364,1770082248465,-568.06,0.00013698,2]
[404371365,1770082248477,-568.06,0.00013698,2]
[404371366,1770082248488,-568.06,0.00013698,2]
[404371367,1770082248499,-568.06,0.00013698,2]
[404371368,1770082248510,-568.06,0.00013698,2]
[404371369,1770082248522,-568.06,0.00013698,2]
[404371370,1770082248533,-568.06,0.00013698,2]
[404371371,1770082248545,-568.06,0.00013698,2]
[404371372,1770082248556,-568.06,0.00013698,2]
[404371373,1770082248567,-568.06967228,0.00013698,2]
[404371374,1770082248578,-500.0,0.00013698,2]
[404371375,1770082248589,-500.0,0.00013698,2]
[404371376,1770082248600,-550.54297222,0.00013698,2]
[404371377,1770082248611,-500.0,0.00013698,2]
[404371378,1770082248622,-500.0,0.00013698,2]
[404371379,1770082248633,-500.0,0.00013698,2]
[404371380,1770082248644,-500.0,0.00013698,2]
[404371381,1770082248655,-500.0,0.00013698,2]
[404371382,1770082248666,-339.58910113,0.00013698,2]
[404371383,1770082248677,-516.48312948,0.00013698,2]
[404371384,1770082248687,-500.0,0.00013698,2]
[404371385,1770082248698,-500.0,0.00013698,2]
[404371386,1770082248709,-500.0,0.00013698,2]
[404371387,1770082248720,-500.0,0.00013698,2]
[404371388,1770082248731,-500.0,0.00013698,2]
[404371389,1770082248741,-500.0,0.00013698,2]
[404371390,1770082248751,-500.0,0.00013698,2]
[404371391,1770082248762,-500.0,0.00013698,2]
[404371392,1770082248773,-345.2209737,0.00013698,2]
[404371393,1770082248787,-500.0,0.00013698,2]
[404371394,1770082248798,-500.0,0.00013698,2]
[404371395,1770082248808,-500.0,0.00013698,2]
[404371396,1770082248819,-500.0,0.00013698,2]
[404371397,1770082248831,-500.0,0.00013698,2]
[404371398,1770082248842,-500.0,0.00013698,2]
[404371399,1770082248855,-619.01786404,0.00013698,2]
[404371400,1770082248866,-500.0,0.00013698,2]
[404371401,1770082248876,-500.0,0.00013698,2]
[404371402,1770082248888,-500.0,0.00013698,2]
[404371403,1770082248899,-500.0,0.00013698,2]
[404371404,1770082248910,-500.0,0.00013698,2]
[404371405,1770082248921,-500.0,0.00013698,2]
[404371406,1770082248932,-500.0,0.00013698,2]
[404371407,1770082248944,-500.0,0.00013698,2]
[404371408,1770082248955,-500.0,0.00013698,2]
[404371409,1770082248966,-500.0,0.00013698,2]
[404371410,1770082248977,-500.0,0.00013698,2]
[404371411,1770082248988,-500.0,0.00013698,2]
[404371412,1770082249000,-500.0,0.00013698,2]
[404371413,1770082249012,-500.0,0.00013698,2]
[404371414,1770082249024,-500.0,0.00013698,2]
[404371415,1770082249034,-500.0,0.00013698,2]
[404371416,1770082249046,-500.0,0.00013698,2]
[404371417,1770082249058,-500.0,0.00013698,2]
[404371418,1770082249069,-500.0,0.00013698,2]
[404371419,1770082249081,-500.0,0.00013698,2]
[404371420,1770082249091,-500.0,0.00013698,2]
[404371421,1770082249103,-500.0,0.00013698,2]
[404371422,1770082249115,-500.0,0.00013698,2]
[404371423,1770082249125,-500.0,0.00013698,2]
[404371424,1770082249140,-500.0,0.00013698,2]
[404371425,1770082249153,-500.0,0.00013698,2]
[404371426,1770082249167,-500.0,0.00013698,2]
[404371427,1770082249180,-500.0,0.00013698,2]
[404371428,1770082249193,-500.0,0.00013698,2]
[404371429,1770082249205,-500.0,0.00013698,2]
[404371430,1770082249217,-500.0,0.00013698,2]
[404371431,1770082249229,-500.0,0.00013698,2]
[404371432,1770082249242,-408.83165373,0.00013698,2]
[404371433,1770082249261,-702.89,0.00013698,2]
[404371434,1770082249577,-702.89,0.00013698,2]
[404371435,1770082249591,-702.89,0.00013698,2]
[404371436,1770082249600,-702.89,0.00013698,2]
[404371437,1770082249609,-702.89,0.00013698,2]
[404371438,1770082249618,-702.89,0.00013698,2]
[404371439,1770082249628,-702.89,0.00013698,2]
[404371440,1770082249637,-702.89,0.00013698,2]
[404371441,1770082249646,-702.89,0.00013698,2]
[404371442,1770082249654,-702.89,0.00013698,2]
[404371443,1770082249664,-702.89,0.00013698,2]
[404371444,1770082249672,-702.89,0.00013698,2]
[404371445,1770082249682,-702.89,0.00013698,2]
[404371446,1770082249691,-702.89,0.00013698,2]
[404371447,1770082249701,-702.89,0.00013698,2]
[404371448,1770082249710,-702.89,0.00013698,2]
[404371449,1770082249720,-702.89,0.00013698,2]
[404371450,1770082249729,-702.89,0.00013698,2]
[404371451,1770082249738,-702.89,0.00013698,2]
[404371452,1770082249748,-702.89,0.00013698,2]
[404371453,1770082249757,-702.89,0.00013698,2]
[404371454,1770082249768,-702.89,0.00013698,2]
[404371455,1770082249778,-702.89,0.00013698,2]
[404371456,1770082249791,-703.10484432,0.00013698,2]
[404371457,1770082249801,-1072.77,0.00013698,2]
[404371458,1770082249810,-1072.77,0.00013698,2]
[404371459,1770082249819,-1072.77,0.00013698,2]
[404371460,1770082249831,-1072.77,0.00013698,2]
[404371461,1770082249841,-1072.77,0.00013698,2]
[404371462,1770082249851,-1072.77,0.00013698,2]
[404371463,1770082249862,-1072.77,0.00013698,2]
[404371464,1770082249872,-1072.77,0.00013698,2]
[404371465,1770082249881,-1072.77,0.00013698,2]
[404371466,1770082249892,-1072.77,0.00013698,2]
[404371467,1770082249902,-1072.77,0.00013698,2]
[404371468,1770082249914,-1072.77,0.00013698,2]
[404371469,1770082249924,-1072.77,0.00013698,2]
[404371470,1770082249934,-500.0,0.00013698,2]
[404371471,1770082249943,-500.0,0.00013698,2]
[404371472,1770082249953,-500.0,0.00013698,2]
[404371473,1770082249961,-500.0,0.00013698,2]
[404371474,1770082249971,-500.0,0.00013698,2]
[404371475,1770082249980,-500.0,0.00013698,2]
[404371476,1770082249989,-500.0,0.00013698,2]
[404371477,1770082249999,-500.0,0.00013698,2]
[404371478,1770082250009,-500.0,0.00013698,2]
[404371479,1770082250018,-500.0,0.00013698,2]
[404371480,1770082250034,-500.0,0.00013698,2]
[404371481,1770082250047,-500.0,0.00013698,2]
[404371482,1770082250057,-500.0,0.00013698,2]
[404371483,1770082250067,-500.0,0.00013698,2]
[404371484,1770082250077,-500.0,0.00013698,2]
[404371485,1770082250087,-500.0,0.00013698,2]
[404371486,1770082250096,-500.0,0.00013698,2]
[404371487,1770082250106,-500.0,0.00013698,2]
[404371488,1770082250115,-500.0,0.00013698,2]
[404371489,1770082250125,-500.0,0.00013698,2]
[404371490,1770082250134,-500.0,0.00013698,2]
[404371491,1770082250143,-172.30032513,0.00013698,2]
[404371492,1770082250153,-500.0,0.00013698,2]
[404371493,1770082250162,-500.0,0.00013698,2]
[404371494,1770082250171,-500.0,0.00013698,2]
[404371495,1770082250180,-500.0,0.00013698,2]
[404371496,1770082250189,-500.0,0.00013698,2]
[404371497,1770082250198,-500.0,0.00013698,2]
[404371498,1770082250208,-613.19482535,0.00013698,2]
[404371499,1770082250218,-540.92,0.00013698,2]
[404371500,1770082250227,-540.92,0.00013698,2]
[404371501,1770082250237,-540.92,0.00013698,2]
[404371502,1770082250247,-540.92,0.00013698,2]
[404371503,1770082250256,-540.92,0.00013698,2]
[404371504,1770082250265,-540.92,0.00013698,2]
[404371505,1770082250274,-540.92,0.00013698,2]
[404371506,1770082250283,-540.92,0.00013698,2]
[404371507,1770082250292,-540.92,0.00013698,2]
[404371508,1770082250302,-540.92,0.00013698,2]
[404371509,1770082250311,-540.92,0.00013698,2]
[404371510,1770082250321,-540.92,0.00013698,2]
[404371511,1770082250331,-540.92,0.00013698,2]
[404371512,1770082250340,-540.92,0.00013698,2]
[404371513,1770082250349,-540.92,0.00013698,2]
[404371514,1770082250359,-540.92,0.00013698,2]
[404371515,1770082250368,-540.92,0.00013698,2]
[404371516,1770082250378,-540.92,0.00013698,2]
[404371517,1770082250391,-540.92,0.00013698,2]
[404371518,1770082250401,-540.92,0.00013698,2]
[404371519,1770082250410,-540.92,0.00013698,2]
[404371520,1770082250419,-540.92,0.00013698,2]
[404371521,1770082250429,-540.92,0.00013698,2]
[404371522,1770082250439,-541.05728677,0.00013698,2]
[404371523,1770082250448,-7810.3,0.00013699,2]
[404371524,1770082250459,-272.51,0.00013699,2]
[404371525,1770082250468,-227.09,0.00013699,2]
[404371526,1770082250477,-189.24,0.00013699,2]
[404371527,1770082250487,-157.7,0.00013699,2]
[404371528,1770082250497,-7232.78,0.00013699,2]
[404371529,1770082250507,-788.53,0.00013699,2]
[404371530,1770082250516,-500.46237197,0.00013699,2]
[404371531,1770082250529,-163.34993731,0.00013699,2]
[404371532,1770082250539,-500.0,0.00013699,2]
[404371533,1770082250549,-500.0,0.00013699,2]
[404371534,1770082250559,-163.12661798,0.00013699,2]
[404371535,1770082250570,-500.0,0.00013699,2]
[404371536,1770082250580,-163.46067997,0.00013699,2]
[404371537,1770082250590,-500.0,0.00013699,2]
[404371538,1770082250599,-200.70028911,0.00013699,2]
[404371539,1770082250609,-500.0,0.00013699,2]
[404371540,1770082250618,-500.0,0.00013699,2]
[404371541,1770082250628,-500.0,0.00013699,2]
[404371542,1770082250638,-500.0,0.00013699,2]
[404371543,1770082250648,-500.0,0.00013699,2]
[404371544,1770082250658,-500.0,0.00013699,2]
[404371545,1770082250668,-500.0,0.00013699,2]
[404371546,1770082250677,-500.0,0.00013699,2]
[404371547,1770082250687,-559.67308476,0.00013699,2]
[404371548,1770082250697,-500.0,0.00013699,2]
[404371549,1770082250707,-500.0,0.00013699,2]
[404371550,1770082250716,-500.0,0.00013699,2]
[404371551,1770082250726,-500.0,0.00013699,2]
[404371552,1770082250735,-500.0,0.00013699,2]
[404371553,1770082250746,-500.0,0.00013699,2]
[404371554,1770082250760,-500.0,0.00013699,2]
[404371555,1770082250771,-574.06272579,0.00013699,2]
[404371556,1770082250786,-500.0,0.00013699,2]
[404371557,1770082250795,-500.0,0.00013699,2]
[404371558,1770082250805,-464.35211832,0.00013699,2]
[404371559,1770082250816,-522.30858015,0.00013699,2]
[404371560,1770082250828,-500.0,0.00013699,2]
[404371561,1770082250837,-500.0,0.00013699,2]
[404371562,1770082250846,-500.0,0.00013699,2]
[404371563,1770082250857,-500.41005015,0.00013699,2]
[404371564,1770082250866,-500.0,0.00013699,2]
[404371565,1770082250875,-500.0,0.00013699,2]
[404371566,1770082250886,-512.94754167,0.00013699,2]
[404371567,1770082250896,-500.0,0.00013699,2]
[404371568,1770082250906,-340.09137446,0.00013699,2]
[404371569,1770082250915,-336.43827265,0.00013699,2]
[404371570,1770082250926,-500.0,0.00013699,2]
[404371571,1770082250937,-500.62768041,0.00013699,2]
[404371572,1770082250946,-161.45537985,0.00013699,2]
[404371573,1770082250960,-151.07783782,0.00013699,2]
[404371574,1770082250969,-500.0,0.00013699,2]
[404371575,1770082250978,-500.0,0.00013699,2]
[404371576,1770082250987,-160.54295648,0.00013699,2]
[404371577,1770082250996,-500.40906893,0.00013699,2]
[404371578,1770082251006,-500.63586771,0.00013699,2]
[404371579,1770082251015,-500.0,0.00013699,2]
[404371580,1770082251024,-460.30125151,0.00013699,2]
[404371581,1770082251033,-500.0,0.00013699,2]
[404371582,1770082251043,-160.61738464,0.00013699,2]
[404371583,1770082251053,-168.03217975,0.00013699,2]
[404371584,1770082251062,-500.0,0.00013699,2]
[404371585,1770082251071,-500.0,0.00013699,2]
[404371586,1770082251081,-185.46503654,0.00013699,2]
[404371587,1770082251090,-500.0,0.00013699,2]
[404371588,1770082251099,-500.6120606,0.00013699,2]
[404371589,1770082251108,-500.0,0.00013699,2]
[404371590,1770082251117,-500.0,0.00013699,2]
[404371591,1770082251126,-500.0,0.00013699,2]
[404371592,1770082251135,-500.0,0.00013699,2]
[404371593,1770082251148,-550.09529227,0.00013699,2]
[404371594,1770082251157,-500.0,0.00013699,2]
[404371595,1770082251166,-486.29318482,0.00013699,2]
[404371596,1770082251176,-593.67705191,0.00013699,2]
[404371597,1770082251185,-500.0,0.00013699,2]
[404371598,1770082251195,-500.0,0.00013699,2]
[404371599,1770082251204,-500.0,0.00013699,2]
[404371600,1770082251213,-558.68376736,0.00013699,2]
[404371601,1770082251222,-500.0,0.00013699,2]
[404371602,1770082251232,-565.28889889,0.00013699,2]
[404371603,1770082251241,-500.0,0.00013699,2]
[404371604,1770082251251,-500.0,0.00013699,2]
[404371605,1770082251260,-500.32227363,0.00013699,2]
[404371606,1770082251269,-500.0,0.00013699,2]
[404371607,1770082251278,-500.0,0.00013699,2]
[404371608,1770082251288,-500.0,0.00013699,2]
[404371609,1770082251297,-500.0,0.00013699,2]
[404371610,1770082251307,-500.0,0.00013699,2]
[404371611,1770082251317,-773.4,0.00013699,2]
[404371612,1770082251327,-1651.81367706,0.00013701,2]
[404371613,1770082251341,-242.15909246,0.00013701,2]
[404371614,1770082251351,-201.93286099,0.00013701,2]
[404371615,1770082251361,-232.03003895,0.00013701,2]
[404371616,1770082251371,-1083.24,0.00013761,2]
[404371617,1770082251380,-200.0,0.00013836,2]
[404371618,1770082251390,-500.0,0.00013836,2]
[404371619,1770082251399,-734.77,0.00013843,2]
[404371620,1770082251409,-500.0,0.00013843,2]
[404371621,1770082251419,-1072.77,0.00013843,2]
[404371622,1770082251428,-284.3,0.00013846,2]
[404371623,1770082251438,-1002.64005393,0.00013883,2]
[404371624,1770082251447,-4000.0,0.0001391,2]
[404371625,1770082251457,-150.0,0.00013925,2]
[404371626,1770082251467,-360.21,0.0001394,2]
[404371627,1770082251476,-500.0,0.00013945,2]
[404371628,1770082251486,-5692.13867723,0.00013946,2]
[404371629,1770082251495,-500.0,0.00013947,2]
[404371630,1770082251504,-6453.0,0.00013968,2]
[404371631,1770082251514,-2129.0,0.00013972,2]
[404371632,1770082251523,-773.4,0.00013973,2]
[404371633,1770082251536,-1083.24,0.00014035,2]
[404371634,1770082251545,-44950.45508119,0.00014156,2]
[404371635,1770082251555,-161.0,0.00014194,2]
[404371636,1770082251565,-346.92554585,0.00014247,2]
[404371637,1770082251574,-494.98211284,0.00014247,2]
[404371638,1770082251584,-500.0,0.00014247,2]
[404371639,1770082251593,-1000.0,0.00014247,2]
[404371640,1770082251602,-1000.0,0.00014247,2]
[404371641,1770082251611,-1000.0,0.00014247,2]
[404371642,1770082251620,-1000.0,0.00014247,2]
[404371643,1770082251630,-1000.0,0.00014247,2]
[404371644,1770082251639,-1000.0,0.00014247,2]
[404371645,1770082251648,-504.20951303,0.00014247,2]
[404371646,1770082251658,-1000.0,0.00014247,2]
[404371647,1770082251669,-1000.0,0.00014247,2]
[404371648,1770082251680,-502.15998223,0.00014247,2]
[404371649,1770082251690,-1000.0,0.00014247,2]
[404371650,1770082251700,-1000.0,0.00014247,2]
[404371651,1770082251711,-1000.0,0.00014247,2]
[404371652,1770082251721,-1000.0,0.00014247,2]
[404371653,1770082251732,-1000.0,0.00014247,2]
[404371654,1770082251743,-1000.0,0.00014247,2]
[404371655,1770082251755,-1000.0,0.00014247,2]
[404371656,1770082251765,-500.0,0.00014247,2]
[404371657,1770082251775,-500.0,0.00014247,2]
[404371658,1770082251787,-1000.0,0.00014247,2]
[404371659,1770082251796,-1000.0,0.00014247,2]
[404371660,1770082251807,-1000.0,0.00014247,2]
[404371661,1770082251817,-1000.0,0.00014247,2]
[404371662,1770082251827,-1000.0,0.00014247,2]
[404371663,1770082251838,-501.28378078,0.00014247,2]
[404371664,1770082251847,-500.0,0.00014247,2]
[404371665,1770082251857,-1000.0,0.00014247,2]
[404371666,1770082251866,-1137.78662466,0.00014247,2]
[404371667,1770082251877,-486.90150068,0.00014247,2]
[404371668,1770082251888,-335.67208162,0.00014247,2]
[404371669,1770082251898,-1000.0,0.00014247,2]
[404371670,1770082251907,-1000.0,0.00014247,2]
[404371671,1770082251924,-1000.0,0.00014247,2]
[404371672,1770082251936,-1000.0,0.00014247,2]
[404371673,1770082251946,-1000.0,0.00014247,2]
[404371674,1770082251958,-1000.0,0.00014247,2]
[404371675,1770082251967,-1000.0,0.00014247,2]
[404371676,1770082251977,-1000.0,0.00014247,2]
[404371677,1770082251987,-1001.21553048,0.00014247,2]
[404371678,1770082251997,-1000.0,0.00014247,2]
[404371679,1770082252007,-1000.0,0.00014247,2]
[404371680,1770082252016,-1000.0,0.00014247,2]
[404371681,1770082252026,-1000.0,0.00014247,2]
[404371682,1770082252036,-775.48,0.00014247,2]
[404371683,1770082252048,-599.60298507,0.00014248,2]
[404371684,1770082252058,-747.8093786,0.00014248,2]
[404371685,1770082252067,-1712.93078312,0.00014249,2]
[404371686,1770082252078,-251.11897888,0.00014249,2]
[404371687,1770082252087,-209.40437684,0.00014249,2]
[404371688,1770082252097,-1083.24,0.00014308,2]
[404371689,1770082252107,-7810.3,0.00014384,2]
[404371690,1770082252118,-200.0,0.00014384,2]
[404371691,1770082252128,-500.0,0.00014384,2]
[404371692,1770082252139,-10331.11610173,0.0001439,2]
[404371693,1770082252150,-1859.46618133,0.00014458,2]
[404371694,1770082252160,-161.0,0.00014462,2]
[404371695,1770082252170,-300.0,0.00014473,2]
[404371696,1770082252179,-1083.24,0.00014582,2]
[404371697,1770082252189,-160.9964064,0.00014731,2]
[404371698,1770082252199,-464.09949899,0.00014795,2]
[404371699,1770082252209,-1500.0,0.00014795,2]
[404371700,1770082252218,-1136.09023448,0.00014795,2]
[404371701,1770082252227,-1500.0,0.00014795,2]
[404371702,1770082252237,-500.0,0.00014795,2]
[404371703,1770082252247,-1500.0,0.00014795,2]
[404371704,1770082252256,-1500.0,0.00014795,2]
[404371705,1770082252265,-871.81162767,0.00014795,2]
[404371706,1770082252276,-1484.36146112,0.00014795,2]
[404371707,1770082252291,-1450.35816697,0.00014795,2]
[404371708,1770082252303,-1500.0,0.00014795,2]
[404371709,1770082252315,-1500.0,0.00014795,2]
[404371710,1770082252326,-1191.30611065,0.00014795,2]
[404371711,1770082252337,-500.0,0.00014795,2]
[404371712,1770082252347,-368.88723017,0.00014795,2]
[404371713,1770082252356,-500.0,0.00014795,2]
[404371714,1770082252367,-1500.0,0.00014795,2]
[404371715,1770082252377,-630.25604329,0.00014795,2]
[404371716,1770082252387,-1503.56470175,0.00014795,2]
[404371717,1770082252397,-433.76362311,0.00014795,2]
[404371718,1770082252407,-1500.0,0.00014795,2]
[404371719,1770082252417,-504.40745995,0.00014795,2]
[404371720,1770082252427,-1500.0,0.00014795,2]
[404371721,1770082252437,-386.62164618,0.00014795,2]
[404371722,1770082252446,-502.08003751,0.00014795,2]
[404371723,1770082252456,-219.87178321,0.00014795,2]
[404371724,1770082252466,-525.83341626,0.00014795,2]
[404371725,1770082252476,-1409.99024224,0.00014795,2]
[404371726,1770082252486,-1500.0,0.00014795,2]
[404371727,1770082252495,-1503.93923178,0.00014795,2]
[404371728,1770082252505,-1001.55484772,0.00014795,2]
[404371729,1770082252516,-1776.30922209,0.00014797,2]
[404371730,1770082252526,-260.4103811,0.00014797,2]
[404371731,1770082252536,-217.15233878,0.00014797,2]
[404371732,1770082252546,-1083.24,0.00014856,2]
[404371733,1770082252555,-151.0,0.00014858,2]
[404371734,1770082252566,-151.0,0.00014858,2]
[404371735,1770082252577,-151.0,0.00014858,2]
[404371736,1770082252587,-1000.0,0.00014873,2]
[404371737,1770082252596,-1000.0,0.00014873,2]
[404371738,1770082252606,-179.5507367,0.000149,2]
[404371739,1770082252617,-200.0,0.00014932,2]
[404371740,1770082252628,-500.0,0.00014932,2]
[404371741,1770082252638,-2051.69202855,0.00015,2]
[404371742,1770082252653,-2140.76085253,0.00015,14]
[404371743,1770082252663,-7987.53933178,0.00015,2]
[404371744,1770082252673,-206723.90392175,0.00015,3]
[404371745,1770082253235,-4097.43696543,0.00015,3]
[404371746,1770082253559,-728.0,9.651e-05,2]
[404371747,1770082253569,-728.0,9.706e-05,2]
[404371748,1770082253579,-728.0,9.761e-05,2]
[404371749,1770082253589,-728.0,9.815e-05,2]
[404371750,1770082253599,-728.0,9.87e-05,2]
[404371751,1770082253608,-728.0,9.925e-05,2]
[404371752,1770082253618,-901.0,9.98e-05,2]
[404371753,1770082253628,-728.0,9.98e-05,2]
[404371754,1770082253638,-565.0,0.00010035,2]
[404371755,1770082253647,-901.0,0.00010035,2]
[404371756,1770082253657,-467.0,0.00010254,2]
[404371757,1770082253666,-8965.51989803,0.00015,3]
[404371758,1770082253678,-37861.46346348,0.00015,3]
[404371759,1770082253691,-1085.72359549,0.00015,3]
[404371760,1770082253706,-14616.08659907,0.00015,3]
[404371761,1770082253717,-1022.63,0.00015,3]
[404371762,1770082254016,-1.7e-07,0.00015,3]
[404371763,1770082254057,-565.0,0.00010089,2]
[404371764,1770082254068,-862.5027801,0.00015,3]
[404371765,1770082254080,-865.13590181,0.00015,3]
[404371766,1770082254097,-4793.16430407,0.00015,3]
[404371767,1770082254121,-229.7169417,0.00015,3]
[404371768,1770082254307,152.51246343,8.674e-05,2]
[404371769,1770082254372,-728.0,0.00010035,2]
[404371770,1770082254381,-901.0,0.00010089,2]
[404371771,1770082254391,-728.0,0.00010089,2]
[404371772,1770082254401,-565.0,0.00010144,2]
[404371773,1770082254411,-467.0,0.00010308,2]
[404371774,1770082254421,-88865.66876679,0.00015,3]
[404371775,1770082254431,-29749.39567481,0.00015,2]
[404371776,1770082254441,-418.0702292,0.00015,2]
[404371777,1770082254451,-450.0,0.00015021,2]
[404371778,1770082254461,-868.9,0.00015068,2]
[404371779,1770082254471,-7810.3,0.00015068,2]
[404371780,1770082254481,-879.518026,0.00015068,2]
[404371781,1770082254491,-879.518026,0.00015068,2]
[404371782,1770082254501,-879.518026,0.00015068,2]
[404371783,1770082254511,-879.518026,0.00015068,2]
[404371784,1770082254521,-900.0,0.00015068,2]
[404371785,1770082254531,-1083.24,0.0001513,2]
[404371786,1770082254541,-5692.13867723,0.00015264,2]
[404371787,1770082254551,-734.77,0.00015299,2]
[404371788,1770082254560,-500.0,0.00015299,2]
[404371789,1770082254570,-1072.77,0.00015299,2]
[404371790,1770082254581,-1517.64,0.000153,2]
[404371791,1770082254590,-988.5,0.00015342,2]
[404371792,1770082254599,-501.43163729,0.00015342,2]
[404371793,1770082254609,-1500.0,0.00015342,2]
[404371794,1770082254618,-365.91722632,0.00015342,2]
[404371795,1770082254629,-1006.52245564,0.00015342,2]
[404371796,1770082254638,-269.29562662,0.00015342,2]
[404371797,1770082254648,-2003.04287513,0.00015342,2]
[404371798,1770082254658,-504.44561823,0.00015342,2]
[404371799,1770082254669,-2000.0,0.00015342,2]
[404371800,1770082254680,-1842.03266331,0.00015345,2]
[404371801,1770082254690,-270.0455652,0.00015345,2]
[404371802,1770082254699,-225.18697532,0.00015345,2]
[404371803,1770082254709,-9035.0,0.00015365,2]
[404371804,1770082254718,-1201.0,0.00015369,2]
[404371805,1770082254728,-413.69756241,0.00015384,2]
[404371806,1770082254738,-508.63384765,0.000154,2]
[404371807,1770082254747,-1083.24,0.00015404,2]
[404371808,1770082254756,-150.00826967,0.00015418,2]
[404371809,1770082254766,-230.88290778,0.0001548,2]
[404371810,1770082254775,-500.0,0.0001548,2]
[404371811,1770082254788,-201.39718201,0.00015569,2]
[404371812,1770082254798,-500.0,0.00015572,2]
[404371813,1770082254807,-159.65,0.00015572,2]
[404371814,1770082254816,-5625.57958318,0.000156,2]
[404371815,1770082254826,-16360.53236631,0.000156,2]
[404371816,1770082254838,-4868.0,0.000156,2]
[404371817,1770082254849,-42845.88576915,0.000156,2]
[404371818,1770082254865,-719.2951,0.000156,2]
[404371819,1770082254878,-1592.05757046,0.000156,2]
[404371820,1770082254889,-2974.67239771,0.000156,2]
[404371821,1770082255767,-453.03,0.00010199,2]
[404371822,1770082255778,-111.97,0.00010199,2]
[404371823,1770082255791,-17165.35900549,0.000156,2]
[404371824,1770082255802,-8918.3791467,0.000156,2]
[404371825,1770082255816,-1621.23661503,0.000156,2]
[404371826,1770082255828,-301.1,0.000156,2]
[404371827,1770082255839,-1599.7566905,0.000156,2]
[404371828,1770082255850,-70705.72533865,0.000156,2]
[404371829,1770082255862,-359.76179104,0.00015616,2]
[404371830,1770082255871,-1083.24,0.00015678,2]
[404371831,1770082255880,-7810.3,0.00015753,2]
[404371832,1770082255890,-30511.55265018,0.00015757,2]
[404371833,1770082255899,-151.0,0.00015757,2]
[404371834,1770082255908,-151.0,0.00015757,2]
[404371835,1770082255917,-197.22189,0.00015757,2]
[404371836,1770082255925,-197.22189,0.00015757,2]
[404371837,1770082255934,-197.22189,0.00015757,2]
[404371838,1770082255944,-197.22189,0.00015757,2]
[404371839,1770082255952,-171.904398,0.00015757,2]
[404371840,1770082255961,-2404.613525,0.00015757,2]
[404371841,1770082255970,-171.904398,0.00015757,2]
[404371842,1770082255981,-2404.613525,0.00015757,2]
[404371843,1770082255992,-692.662916,0.00015757,2]
[404371844,1770082256003,-171.904398,0.00015757,2]
[404371845,1770082256016,-2404.613525,0.00015757,2]
[404371846,1770082256026,-692.662916,0.00015757,2]
[404371847,1770082256036,-171.904398,0.00015757,2]
[404371848,1770082256047,-2404.613525,0.00015757,2]
[404371849,1770082256055,-692.662916,0.00015757,2]